fUST/lending_fUST_20250117
["ID","MTS","AMOUNT","RATE_DAILY","PERIOD"]
[349238276,1737067844104,-22751.68784076,0.00023665,61]
[349238278,1737067844116,-1381.16990905,0.00023665,61]
[349238333,1737067847037,-500.0,0.00020677,3]
[349238335,1737067847047,-500.0,0.00020814,3]
[349238337,1737067847056,-500.0,0.00020951,3]
[349238339,1737067847066,-395.0,0.00021257,2]
[349238341,1737067847076,-14455.62996853,0.00023665,61]
[349238343,1737067890782,160.0,0.00022907,120]
[349238344,1737067951299,160.0,0.00024839,120]
[349238345,1737068010735,160.0,0.00024913,120]
[349238349,1737068070775,160.0,0.00023974,120]
[349238350,1737068131331,160.0,0.00024935,120]
[349238358,1737068310777,160.0,0.0002433,120]
[349238359,1737068371308,160.0,0.00023401,120]
[349238361,1737068430750,160.0,0.00024498,120]
[349238362,1737068444469,164.031607,0.00013973,2]
[349238364,1737068490750,160.0,0.00023437,120]
[349238365,1737068551167,160.0,0.00024345,120]
[349238367,1737068610736,160.0,0.00024105,120]
[349238370,1737068670792,160.0,0.00023417,120]
[349238374,1737068732138,160.0,0.00023479,120]
[349238375,1737068790751,160.0,0.00022638,120]
[349238388,1737068851326,160.0,0.00022585,120]
[349238396,1737068910898,160.0,0.00024352,120]
[349238398,1737068935126,3281.9179833,0.00025,120]
[349238400,1737068971301,160.0,0.00023396,120]
[349238403,1737069005210,194.000268,0.0002411,120]
[349238404,1737069030790,160.0,0.00022982,120]
[349238477,1737069032261,-1655.13878809,0.00017607,2]
[349238479,1737069032271,-1655.13878809,0.00017785,2]
[349238481,1737069032280,-155.13878809,0.00018329,2]
[349238483,1737069032289,-150.0,0.0002,2]
[349238485,1737069032299,-1420.0,0.0002,2]
[349238487,1737069032308,-485.47354115,0.00020169,2]
[349238489,1737069032318,-150.0,0.00020587,2]
[349238491,1737069032327,-286.0867239,0.00020799,2]
[349238493,1737069032336,-205.7914026,0.00020822,2]
[349238495,1737069032345,-1331.5009935,0.0002083,2]
[349238497,1737069032354,-250.0,0.00020831,2]
[349238499,1737069032364,-7012.3119723,0.00020905,2]
[349238501,1737069032373,-150.0,0.00021,2]
[349238503,1737069032382,-151.0,0.00021073,2]
[349238505,1737069032392,-150.0,0.00021558,2]
[349238507,1737069032402,-150.0,0.00021558,2]
[349238509,1737069032411,-1014.50806687,0.000216,4]
[349239045,1737069037995,-265.36662593,0.000216,4]
[349239048,1737069038007,-140.1253072,0.000216,4]
[349239050,1737069038017,-300.0,0.000216,9]
[349239052,1737069038026,-500.0,0.00021821,2]
[349239054,1737069038036,-311.08023099,0.00021917,3]
[349239056,1737069038047,-105.87474309,0.00021917,3]
[349239058,1737069038057,-394.12525691,0.00021917,3]
[349239060,1737069038068,-105.87474309,0.00021917,3]
[349239062,1737069038078,-500.0,0.00021917,3]
[349239064,1737069038088,-185.227,0.00021917,2]
[349239066,1737069038098,-514.43,0.00021917,3]
[349239068,1737069038107,-500.0,0.00021917,3]
[349239070,1737069038117,-500.0,0.00021917,3]
[349239072,1737069038127,-500.0,0.00021917,3]
[349239074,1737069038136,-500.0,0.00021932,8]
[349239076,1737069038146,-514.43,0.00022054,3]
[349239078,1737069038156,-500.0,0.00022054,3]
[349239081,1737069038166,-164.031607,0.00022174,2]
[349239084,1737069038176,-514.43,0.00022191,3]
[349239087,1737069038186,-500.0,0.00022191,3]
[349239090,1737069038196,-514.43,0.00022328,3]
[349239093,1737069038210,-500.0,0.00022328,3]
[349239096,1737069038219,-500.0,0.00022464,3]
[349239098,1737069038228,-500.0,0.00022464,3]
[349239100,1737069038237,-193.26871125,0.00022464,3]
[349239102,1737069038250,-306.73128875,0.00022464,3]
[349239104,1737069038260,-500.0,0.00022464,3]
[349239106,1737069038269,-500.0,0.00022464,3]
[349239108,1737069038279,-514.43,0.00022465,3]
[349239110,1737069038289,-500.0,0.00022465,3]
[349239112,1737069038298,-476.957,0.0002248,2]
[349239114,1737069038307,-500.0,0.00022601,3]
[349239116,1737069038317,-514.43,0.00022602,3]
[349239118,1737069038326,-500.0,0.00022602,3]
[349239120,1737069038335,-244.58181375,0.00022738,3]
[349239122,1737069038346,-255.41818625,0.00022738,3]
[349239124,1737069038355,-514.43,0.00022739,3]
[349239126,1737069038365,-500.0,0.00022739,3]
[349239128,1737069038374,-638.92094508,0.00022813,2]
[349239130,1737069038383,-200.0,0.00022875,3]
[349239132,1737069038392,-514.43,0.00022876,3]
[349239134,1737069038402,-500.0,0.00022876,3]
[349239136,1737069038411,-7438.69753278,0.00023,2]
[349239138,1737069038422,-7438.69753278,0.00023,3]
[349239140,1737069038431,-514.43,0.00023013,3]
[349239142,1737069038440,-500.0,0.00023013,3]
[349239144,1737069038450,-300.0,0.000231,10]
[349239146,1737069038459,-308.83009356,0.0002315,3]
[349239148,1737069038472,-205.59990644,0.0002315,3]
[349239150,1737069038481,-500.0,0.0002315,3]
[349239152,1737069038491,-514.43,0.00023287,3]
[349239154,1737069038500,-36.31009373,0.00023287,3]
[349239157,1737069038511,-463.68990627,0.00023287,3]
[349239159,1737069038521,-1420.0,0.00023328,7]
[349239161,1737069038530,-153.0,0.00023355,2]
[349239163,1737069038539,-153.0,0.00023361,2]
[349239164,1737069038548,-153.0,0.00023365,2]
[349239166,1737069038558,-1000.0,0.00023389,2]
[349239168,1737069038567,-169.5361937,0.00023424,2]
[349239171,1737069038576,-514.43,0.00023424,3]
[349239172,1737069038586,-500.0,0.00023424,3]
[349239174,1737069038595,-22553.74432538,0.00023436,2]
[349239176,1737069038605,-7438.69753278,0.00023556,3]
[349239178,1737069038614,-514.43,0.00023561,3]
[349239181,1737069038624,-219.70678113,0.00023561,3]
[349239182,1737069038633,-33812.61578759,0.00023566,3]
[349239184,1737069038643,-150.0,0.00023587,2]
[349239187,1737069038652,-1809.2,0.000236,2]
[349239189,1737069038661,-2000.0,0.000236,2]
[349239190,1737069038671,-12161.5302192,0.00023617,59]
[349239192,1737069038680,-151.0,0.00023656,7]
[349239195,1737069038690,-222.65415982,0.0002366,2]
[349239197,1737069038699,-500.0,0.00023665,14]
[349239198,1737069038708,-200.35,0.00023665,14]
[349239201,1737069038717,-161.49938809,0.00023665,14]
[349239203,1737069038728,-150.03,0.00023665,14]
[349239205,1737069038738,-500.0,0.00023665,3]
[349239206,1737069038747,-150.03,0.00023665,2]
[349239209,1737069038757,-150.03,0.00023665,14]
[349239210,1737069038766,-500.0,0.00023665,14]
[349239212,1737069038775,-150.03,0.00023665,2]
[349239214,1737069038786,-150.03,0.00023665,14]
[349239216,1737069038795,-500.0,0.00023665,14]
[349239218,1737069038804,-500.0,0.00023665,2]
[349239220,1737069038813,-496.47669234,0.00023665,2]
[349239221,1737069038823,-168.2925,0.00023666,5]
[349239222,1737069038832,-309144.99651372,0.00023666,61]
[349239223,1737069038843,-1659.42452315,0.00023666,61]
[349239594,1737069043048,-302.23434211,0.00021384,2]
[349239596,1737069043061,-103.25759102,0.00021384,2]
[349239599,1737069043070,-850.3,0.00023665,14]
[349239601,1737069043080,-150.03,0.00023665,2]
[349239603,1737069043090,-199.94,0.00023665,14]
[349239604,1737069043099,-1249.9850002,0.00023666,61]
[349239607,1737069043111,-714.09237353,0.00023666,61]
[349239901,1737069045915,-10068.64206734,0.00023666,61]
[349239909,1737069045987,-220657.8160601,0.00023666,61]
[349239911,1737069045997,-622979.4104784,0.00023666,61]
[349239913,1737069046009,-552.00334675,0.00023666,61]
[349239918,1737069046043,-4202.80352532,0.00023666,61]
[349240532,1737069090811,160.0,0.00024783,120]
[349240533,1737069211307,160.0,0.00022896,120]
[349240535,1737069270742,160.0,0.00024542,120]
[349240536,1737069368664,3141.6971829,0.00025,120]
[349240537,1737069381560,172.04,0.00025,120]
[349240538,1737069450765,160.0,0.00022601,120]
[349240539,1737069510755,160.0,0.0002286,120]
[349240541,1737069530843,162.970658,0.00013973,2]
[349240542,1737069570786,160.0,0.00022509,120]
[349240543,1737069616473,200.0,0.000155,2]
[349240544,1737069630826,160.0,0.00024276,120]
[349240545,1737069690819,160.0,0.00023774,120]
[349240546,1737069750763,160.0,0.00024224,120]
[349240547,1737069811318,160.0,0.00022836,120]
[349240548,1737069870772,160.0,0.00023244,120]
[349240549,1737069894454,1000.0,0.00025,120]
[349240550,1737069905128,673.0,0.00025,120]
[349240594,1737069930857,160.0,0.00023104,120]
[349240617,1737069991396,160.0,0.00023522,120]
[349240621,1737070050789,160.0,0.00024062,120]
[349240637,1737070110780,160.0,0.00022762,120]
[349240638,1737070121230,655.0,0.00025,120]
[349240650,1737070230807,160.0,0.00024152,120]
[349240675,1737070232503,-2939.36927878,0.00018788,2]
[349240676,1737070232514,-5645.55306356,0.00018978,2]
[349240677,1737070232524,-300.0,0.00019136,2]
[349240678,1737070232534,-2517.3530439,0.00019137,2]
[349240679,1737070232543,-3895.60625276,0.0001917,2]
[349240690,1737070238097,-1749.9468108,0.0001917,2]
[349240691,1737070238107,-500.0,0.00019999,2]
[349240692,1737070238117,-270.61022865,0.00019999,2]
[349240693,1737070238127,-478.35182242,0.00019999,2]
[349240694,1737070238136,-500.0,0.00019999,2]
[349240695,1737070238145,-10894.13252193,0.0002,5]
[349240757,1737070243140,-2200.0,0.0002,5]
[349240762,1737070243183,-3772.37874223,0.0002,5]
[349240874,1737070290840,160.0,0.00024678,120]
[349240875,1737070301559,2407.0,0.00025,120]
[349240876,1737070410817,160.0,0.0002307,120]
[349240877,1737070470752,160.0,0.00022534,120]
[349240879,1737070530788,160.0,0.00022926,120]
[349240880,1737070591392,160.0,0.00022729,120]
[349240881,1737070643183,174.618255,0.00013973,2]
[349240882,1737070651288,160.0,0.00022921,120]
[349240883,1737070710751,160.0,0.00022449,120]
[349240884,1737070770743,160.0,0.00024168,120]
[349240885,1737070830757,160.0,0.0002374,120]
[349240886,1737070890850,160.0,0.00023104,120]
[349240887,1737070951547,160.0,0.00024498,120]
[349240888,1737071010806,160.0,0.00023584,120]
[349240889,1737071070743,160.0,0.00023341,120]
[349240890,1737071139699,500.0,0.00025,120]
[349240891,1737071215294,184.300254,0.0002411,120]
[349240972,1737071432607,-2271.2994407,0.00018622,2]
[349240973,1737071432618,-2271.2994407,0.00019,2]
[349240974,1737071432629,-241.38378593,0.000199,2]
[349240975,1737071432640,-501.67423928,0.00019973,2]
[349240976,1737071432651,-580.13444843,0.00019973,2]
[349240977,1737071432662,-502.54347369,0.00019973,2]
[349240978,1737071432673,-300.0,0.00019999,2]
[349240979,1737071432683,-500.0,0.00019999,2]
[349240980,1737071432693,-315.43160733,0.00019999,2]
[349240981,1737071432703,-168.2925,0.0002,5]
[349240982,1737071432713,-590680.5389413,0.0002,5]
[349241288,1737071446669,-1424.0322,0.000198,2]
[349241289,1737071446679,-576.36776,0.0002,5]
[349241291,1737071506350,185.887342,0.00013973,2]
[349241292,1737071943435,1778.0,0.00025,120]
[349241294,1737072032285,160.0,0.00024878,120]
[349241295,1737072091885,160.0,0.00022721,120]
[349241296,1737072151909,160.0,0.00024487,120]
[349241297,1737072210755,160.0,0.0002263,120]
[349241298,1737072271492,160.0,0.00024262,120]
[349241299,1737072290875,500.0,0.000155,2]
[349241300,1737072331507,160.0,0.00022858,120]
[349241301,1737072366692,1511.26573681,0.00015,2]
[349241302,1737072384049,176.592974,0.00013973,2]
[349241303,1737072390743,160.0,0.00024323,120]
[349241319,1737072450765,160.0,0.00023881,120]
[349241320,1737072484427,718.0,0.00025,120]
[349241321,1737072511271,160.0,0.00023391,120]
[349241325,1737072570762,160.0,0.00022485,120]
[349241330,1737072630731,160.0,0.00023776,120]
[349241373,1737072632641,-300.0,0.0001916,2]
[349241374,1737072632651,-674.0,0.0001916,2]
[349241375,1737072632661,-4355.37840274,0.00019161,2]
[349241376,1737072632694,-1529.95747379,0.00019161,2]
[349241402,1737072638361,-3851.3317638,0.00019161,2]
[349241408,1737072638416,-695.70850257,0.00019161,2]
[349241410,1737072638427,-166.891748,0.00019178,2]
[349241411,1737072638437,-268.1641896,0.00019898,2]
[349241413,1737072638446,-1126.99574226,0.000199,2]
[349241415,1737072638457,-500.0,0.00019973,2]
[349241417,1737072638466,-500.0,0.00019995,7]
[349241419,1737072638476,-13111.79427155,0.00019996,2]
[349241421,1737072638485,-203.545,0.00019996,2]
[349241423,1737072638494,-500.0,0.00019998,2]
[349241425,1737072638504,-500.0,0.00019998,2]
[349241428,1737072638513,-396.64756811,0.00019998,2]
[349241429,1737072638522,-500.0,0.00019998,2]
[349241433,1737072638532,-500.0,0.00019998,2]
[349241434,1737072638541,-500.0,0.00019998,2]
[349241437,1737072638551,-500.0,0.00019998,2]
[349241438,1737072638560,-500.0,0.00019998,2]
[349241440,1737072638569,-500.0,0.00019998,2]
[349241442,1737072638579,-448.41503669,0.00019998,2]
[349241443,1737072638588,-500.0,0.00019998,2]
[349241444,1737072638598,-500.0,0.00019998,2]
[349241445,1737072638607,-500.0,0.00019998,2]
[349241446,1737072638615,-500.0,0.00019998,2]
[349241447,1737072638625,-500.0,0.00019998,2]
[349241448,1737072638634,-188.13939515,0.00019998,2]
[349241451,1737072638646,-43.67299118,0.00019998,2]
[349241453,1737072638654,-473.85700402,0.00019998,2]
[349241455,1737072638666,-26.14299598,0.00019998,2]
[349241456,1737072638675,-500.0,0.00019998,2]
[349241457,1737072638689,-274.74619797,0.00019998,2]
[349241458,1737072638701,-225.25380203,0.00019998,2]
[349241459,1737072638711,-303.28327289,0.00019998,2]
[349241460,1737072638721,-500.0,0.00019998,2]
[349241461,1737072638731,-500.0,0.00019998,2]
[349241462,1737072638741,-946.69169898,0.00019999,7]
[349241463,1737072638752,-1276.2813817,0.00019999,7]
[349241610,1737072640849,-422.53202834,0.00019999,7]
[349241612,1737072640861,-1391.15516553,0.00019999,7]
[349241615,1737072640877,-708.00323232,0.00019999,7]
[349241618,1737072640897,-2339.02345567,0.00019999,7]
[349241619,1737072640910,-147374.01057039,0.00019999,7]
[349241621,1737072640922,-1019.0,0.00019999,7]
[349241821,1737072643437,-1557.87662,0.00019999,7]
[349242084,1737072646484,-510.00802265,0.00019999,7]
[349242091,1737072646539,-394.0,0.00019999,7]
[349242094,1737072646551,-43957.54602952,0.00019999,7]
[349242096,1737072646562,-2977.79190184,0.00019999,7]
[349242098,1737072646573,-5476.76813969,0.00019999,7]
[349243198,1737072690750,160.0,0.0002477,120]
[349243199,1737072709615,2910.45,0.00025,120]
[349243200,1737072723148,2182.84,0.00025,120]
[349243201,1737072768215,1637.13,0.00025,120]
[349243202,1737072784382,1227.84,0.00025,120]
[349243203,1737072799031,175.085241,0.0002411,120]
[349243204,1737072810770,160.0,0.00022652,120]
[349243205,1737072851071,1841.77,0.00025,120]
[349243206,1737072865947,1841.76,0.00025,120]
[349243207,1737073002120,1000.0,0.000155,2]
[349243209,1737073300917,187.763327,0.00013973,2]
[349243210,1737073420289,373.0,0.00025,120]
[349243213,1737073579655,1000.0,0.00025,120]
[349243214,1737073580968,1000.0,0.00025,120]
[349243216,1737073581919,1000.0,0.00025,120]
[349243217,1737073588028,1000.0,0.00025,120]
[349243218,1737073593205,1000.0,0.00025,120]
[349243219,1737073594146,1000.0,0.00025,120]
[349243220,1737073596048,1000.0,0.00025,120]
[349243221,1737073596766,1000.0,0.00025,120]
[349243234,1737073720500,150.0,2.75e-05,120]
[349243257,1737073824512,166.330978,0.0002411,120]
[349243317,1737073832690,-461.78639607,0.00018761,2]
[349243318,1737073832700,-171.34044479,0.00018951,2]
[349243319,1737073832712,-128.65955521,0.00018951,2]
[349243320,1737073832725,-275.0,0.00018951,2]
[349243321,1737073832734,-220.1075561,0.00018952,2]
[349243359,1737073838555,-16808.92759649,0.00018952,2]
[349243364,1737073838611,-458.75523581,0.00018952,2]
[349243366,1737073838620,-339.0723873,0.00019799,2]
[349243368,1737073838629,-264.88739767,0.00019879,2]
[349243370,1737073838640,-843.10188816,0.00019899,2]
[349243372,1737073838649,-843.10188816,0.00019899,2]
[349243374,1737073838658,-843.10188816,0.000199,2]
[349243376,1737073838668,-843.10188816,0.000199,2]
[349243378,1737073838679,-154.47,0.000199,2]
[349243380,1737073838688,-250.0,0.000199,2]
[349243382,1737073838698,-6089.49412091,0.000199,2]
[349243385,1737073838707,-843.10188816,0.000199,2]
[349243387,1737073838717,-157.64212627,0.000199,2]
[349243389,1737073838731,-152.0,0.00019979,2]
[349243391,1737073838740,-455.70474989,0.0001998,2]
[349243393,1737073838750,-151.0,0.00019998,2]
[349243394,1737073838759,-160.0,0.00019998,2]
[349243395,1737073838769,-807.31294173,0.00019999,5]
[349243396,1737073838778,-160.0,0.00019999,2]
[349243398,1737073838788,-1782.66052021,0.00019999,7]
[349245349,1737074220499,198.37516,0.00013973,2]
[349245407,1737074847591,2025.66099,0.00025,120]
[349245410,1737074977714,158.014429,0.0002411,120]
[349245412,1737075026161,1000.0,0.000155,2]
[349245463,1737075031907,-190.0,0.000189,3]
[349245465,1737075031917,-300.0,0.00018986,2]
[349245467,1737075031928,-3374.64401708,0.00018986,2]
[349245469,1737075031939,-7254.52816875,0.00018986,2]
[349245478,1737075032013,-11705.82781417,0.00018986,2]
[349245480,1737075032022,-403.65647086,0.00018999,5]
[349245482,1737075032032,-289.94909046,0.00018999,2]
[349246009,1737075037783,-14365.85181372,0.00018999,2]
[349246011,1737075037795,-2857.59034575,0.00018999,2]
[349246013,1737075037807,-5068.94065797,0.00018999,2]
[349246015,1737075037818,-231.77647297,0.00019302,2]
[349246017,1737075037826,-264.507,0.00019402,2]
[349246019,1737075037836,-352.7727698,0.000195,2]
[349246021,1737075037846,-353.5154054,0.000195,2]
[349246022,1737075037855,-169.5361937,0.00019799,2]
[349246024,1737075037864,-353.5154054,0.000198,2]
[349246026,1737075037874,-353.5154054,0.000198,2]
[349246028,1737075037883,-190.0,0.000198,3]
[349246030,1737075037892,-197.80957988,0.000198,4]
[349246032,1737075037902,-353.5154054,0.000198,2]
[349246034,1737075037911,-154.47,0.000198,2]
[349246036,1737075037920,-353.5154054,0.000198,2]
[349246038,1737075037930,-353.5154054,0.000198,2]
[349246040,1737075037939,-353.5154054,0.000198,2]
[349246042,1737075037948,-190.0,0.000198,7]
[349246043,1737075037957,-190.0,0.000198,6]
[349246044,1737075037966,-190.0,0.000198,5]
[349246045,1737075037975,-190.0,0.000198,4]
[349246046,1737075037985,-190.0,0.000198,3]
[349246047,1737075037994,-353.5154054,0.000199,2]
[349246048,1737075038004,-353.5154054,0.000199,2]
[349246049,1737075038013,-353.5154054,0.000199,2]
[349246050,1737075038022,-326.78275695,0.000199,2]
[349246051,1737075038032,-1096.23758775,0.000199,2]
[349246052,1737075038042,-222.65415982,0.00019998,2]
[349246053,1737075038051,-9846.58360345,0.00019999,7]
[349246054,1737075038066,-2375.58779973,0.00019999,7]
[349246128,1737075039951,-2020.65807544,0.00019999,7]
[349246135,1737075040008,-1256.38116677,0.00019999,7]
[349246137,1737075040020,-1375.39706211,0.00019999,7]
[349246139,1737075040031,-1133.85484393,0.00019999,7]
[349246144,1737075040068,-430.33137599,0.00019999,7]
[349246146,1737075040079,-3694.94591386,0.00019999,7]
[349246148,1737075040091,-22830.0,0.00019999,7]
[349246152,1737075040123,-1827.33076456,0.00019999,7]
[349246221,1737075040877,1000.0,0.000155,2]
[349246375,1737075042856,-231.7764729,0.0001991,2]
[349246376,1737075042866,-197604.81473478,0.00019999,7]
[349246377,1737075042876,-500.0,0.00019999,2]
[349246378,1737075042887,-500.0,0.00019999,2]
[349246379,1737075042898,-500.0,0.00019999,2]
[349246380,1737075042907,-500.0,0.00019999,2]
[349246381,1737075042917,-500.0,0.00019999,2]
[349246382,1737075042928,-500.0,0.00019999,2]
[349246383,1737075042938,-500.0,0.00019999,2]
[349246384,1737075042948,-500.0,0.00019999,2]
[349246385,1737075042958,-500.0,0.00019999,2]
[349246386,1737075042968,-500.0,0.00019999,2]
[349246388,1737075042976,-173.82823873,0.00019999,2]
[349246389,1737075042986,-500.0,0.00019999,2]
[349246390,1737075042995,-500.0,0.00019999,2]
[349246391,1737075043004,-383.88197458,0.00019999,2]
[349246392,1737075043014,-464.33532724,0.00019999,2]
[349246393,1737075043024,-425.32832729,0.00019999,2]
[349246394,1737075043033,-561.59990155,0.00019999,2]
[349246395,1737075043044,-500.0,0.00019999,2]
[349246396,1737075043054,-500.0,0.00019999,2]
[349246397,1737075043064,-500.0,0.00019999,2]
[349246398,1737075043074,-500.0,0.00019999,2]
[349246399,1737075043083,-500.0,0.00019999,2]
[349246400,1737075043093,-500.0,0.00019999,2]
[349246401,1737075043103,-500.0,0.00019999,2]
[349246402,1737075043112,-500.0,0.00019999,2]
[349246403,1737075043122,-500.0,0.00019999,2]
[349246404,1737075043134,-500.0,0.00019999,2]
[349246406,1737075043147,-300.0,0.00019999,2]
[349246408,1737075043158,-250.0,0.00019999,2]
[349246410,1737075043169,-300.0,0.00019999,2]
[349246412,1737075043180,-500.0,0.00019999,2]
[349246414,1737075043191,-500.0,0.00019999,2]
[349246416,1737075043201,-500.0,0.00019999,2]
[349246418,1737075043215,-500.0,0.00019999,2]
[349246419,1737075043225,-500.0,0.00019999,2]
[349246420,1737075043234,-500.0,0.00019999,2]
[349246421,1737075043244,-500.0,0.00019999,2]
[349246422,1737075043254,-500.0,0.00019999,2]
[349246423,1737075043264,-340.0,0.00019999,2]
[349246424,1737075043275,-300.0,0.00019999,2]
[349246426,1737075043284,-186.45164967,0.00019999,2]
[349246428,1737075043295,-500.0,0.00019999,2]
[349246430,1737075043305,-567.72017019,0.00019999,2]
[349246432,1737075043316,-337402.0637817,0.0002,5]
[349246434,1737075043325,-5185.32071733,0.0002,2]
[349246436,1737075043333,-1186.31,0.0002,2]
[349246438,1737075043341,-3507.06,0.0002,2]
[349246440,1737075043349,-9171.33,0.0002,2]
[349246441,1737075043357,-3961.26036609,0.0002,4]
[349246443,1737075043364,-2107.0,0.0002,2]
[349246455,1737075043474,-218156.85587477,0.0002,5]
[349246665,1737075045828,-353.5154054,0.000198,2]
[349246667,1737075045838,-31653.98622423,0.0002,5]
[349246673,1737075045884,-13729.6291777,0.0002,5]
[349246964,1737075048876,1000.0,0.000155,2]
[349247645,1737075057823,1000.0,0.000155,2]
[349248460,1737075066178,1000.0,0.000155,2]
[349249636,1737075078149,1000.0,0.000155,2]
[349250370,1737075087613,208.456402,0.00013973,2]
[349250374,1737075087643,1000.0,0.000155,2]
[349251396,1737075150005,10000.0,0.000155,2]
[349251397,1737075229601,200.0,0.00025,120]
[349251399,1737075291083,200.0,0.00025,120]
[349251400,1737075700217,400.0,0.00025,120]
[349251401,1737075717926,400.0,0.00025,120]
[349251402,1737076011183,499.999999,0.00025,120]
[349251411,1737076074903,151.7361146,0.00025,120]
[349251463,1737076232051,-888.0578804,0.00018939,2]
[349251464,1737076232063,-523.327,0.00019,2]
[349251465,1737076232074,-166.988782,0.00019178,2]
[349251466,1737076232085,-169.5361937,0.00019799,2]
[349251467,1737076232096,-211.606,0.00019899,2]
[349251468,1737076232107,-300.0,0.00019899,2]
[349251469,1737076232117,-33812.61578759,0.000199,2]
[349251470,1737076232128,-1066.40454672,0.000199,2]
[349251471,1737076232138,-500.0,0.00019973,2]
[349251472,1737076232148,-230.5795164,0.00019999,2]
[349251473,1737076232159,-500.0,0.00019999,2]
[349251474,1737076232169,-500.0,0.00019999,2]
[349251475,1737076232179,-447.83897556,0.00019999,2]
[349251476,1737076232189,-500.0,0.00019999,2]
[349251477,1737076232200,-500.0,0.00019999,2]
[349251478,1737076232210,-491.69705473,0.00019999,2]
[349251479,1737076232221,-36344.97066804,0.0002,5]
[349251480,1737076232234,-1753.2145039,0.0002,5]
[349251502,1737076237915,-10427.29474079,0.0002,5]
[349251503,1737076237976,-490.2451444,0.0002,5]
[349251504,1737076237988,-7245.47500585,0.0002,5]
[349251505,1737076237999,-10430.55168256,0.0002,5]
[349251510,1737076238037,-405.85748006,0.0002,5]
[349251512,1737076238048,-3535.83525596,0.0002,5]
[349251515,1737076238061,-1491.33674368,0.0002,5]
[349251728,1737076240292,-714.78080813,0.0002,5]
[349251730,1737076240304,-728.23,0.0002,5]
[349251732,1737076240315,-249.993024,0.0002,5]
[349252020,1737076242968,-4406.22891146,0.0002,5]
[349252028,1737076243030,-375.481998,0.0002,5]
[349252030,1737076243041,-1711.95539035,0.0002,5]
[349252032,1737076243052,-334285.84163838,0.0002,5]
[349252034,1737076243063,-11052.29613252,0.0002,5]
[349252291,1737076246018,-1003.9001,0.0002,5]
[349254195,1737076295280,218.033582,0.00013973,2]
[349254197,1737076531119,158.014429,0.0002411,120]
[349254213,1737077248779,227.131903,0.00013973,2]
[349254294,1737077432496,-969.21421528,0.00018524,2]
[349254296,1737077432506,-541.10568354,0.00018669,2]
[349254298,1737077432516,-3000.4437266,0.00018769,2]
[349254300,1737077432527,-525.976,0.00019,2]
[349254302,1737077432536,-371.91155071,0.00019479,2]
[349254346,1737077438461,-532.94377996,0.00019284,2]
[349254347,1737077438471,-532.94377996,0.00019479,2]
[349254348,1737077438481,-291.7629205,0.00019799,2]
[349254349,1737077438491,-353.5154054,0.000198,2]
[349254350,1737077438500,-302.0584643,0.000198,2]
[349254351,1737077438510,-208.903,0.00019899,2]
[349254352,1737077438519,-500.0,0.00019899,7]
[349254353,1737077438529,-300.0,0.00019899,2]
[349254354,1737077438539,-446.8775521,0.000199,2]
[349254355,1737077438549,-309.6394073,0.000199,2]
[349254356,1737077438559,-425.2900171,0.000199,2]
[349254357,1737077438567,-215.0156227,0.000199,2]